[Event "1000GM Spring GM-B 2024"]
[Site "New York"]
[Date "2024.04.01"]
[Round "9.1"]
[White "Furfine, Jacob"]
[Black "Eidelman, Gabriel"]
[Result "1-0"]
[ECO "B13"]
[WhiteElo "2343"]
[BlackElo "2374"]
[Annotator "RC"]
[PlyCount "95"]
[EventDate "2024.03.26"]
[EventType "tourn"]
[EventCountry "USA"]
[SourceTitle "playchess.com"]
[Source "ChessBase"]
[SourceQuality "1"]
[TimeControl "5400+30"]

1. d4 {[%emt 0:00:03]} d5 {[%emt 0:01:01]} 2. Bf4 {[%emt 0:00:18]} Nf6 {[%emt 0:00:57]} 3. e3 {[%emt 0:00:10]} c5 {[%emt 0:01:04]} 4. Nc3 {[%emt 0:03:04]} cxd4 {[%emt 0:03:47]} 5. exd4 {[%emt 0:00:03]} a6 {[%emt 0:00:59]} 6. Bd3 {[%emt 0:00:05]} Nc6 {[%emt 0:01:37]} 7. Nce2 {[%emt 0:00:20]} Qb6 {[%emt 0:07:57]} 8. Rb1 {[%emt 0:00:05]} Nb4 {[%emt 0:02:28]} 9. Nf3 {[%emt 0:03:27]} Bg4 {[%emt 0:02:50]} 10. Ne5 {[%emt 0:21:08]} e6 {[%emt 0:05:55]} 11. Nxg4 {[%emt 0:03:16]} Nxg4 {[%emt 0:00:36]} 12. O-O {[%emt 0:00:16]} Bd6 {[%emt 0:02:09]} 13. c3 {[%emt 0:01:33]} Nxd3 {[%emt 0:01:30]} 14. Qxd3 {[%emt 0:00:03]} O-O {[%emt 0:06:03]} 15. Qg3 {[%emt 0:03:15]} Bxf4 {[%emt 0:00:06]} 16. Qxg4 {[%emt 0:01:05]} Bd6 {[%emt 0:07:48]} 17. f4 {[%emt 0:00:43]} Rae8 {[%emt 0:10:20]} 18. Kh1 {[%emt 0:00:29]} g6 {[%emt 0:03:29]} 19. Nc1 {[%emt 0:00:59]} Qb5 {[%emt 0:03:35]} 20. Qd1 {[%emt 0:01:58]} Qc4 {[%emt 0:03:30]} 21. a3 {[%emt 0:02:07]} b5 {[%emt 0:00:22]} 22. Nd3 {[%emt 0:00:04]} a5 {[%emt 0:00:05]} 23. Rf3 {[%emt 0:04:33]} Rb8 {[%emt 0:05:55]} 24. Rc1 {[%emt 0:01:46]} Qc7 {[%emt 0:03:47]} 25. g4 {[%emt 0:02:36]} f6 {[%emt 0:01:11]} 26. Qe2 {[%emt 0:02:48]} Rfe8 {[%emt 0:01:51]} 27. g5 {[%emt 0:01:28]} Qe7 {[%emt 0:06:25]} 28. gxf6 {[%emt 0:03:48]} Qxf6 {[%emt 0:00:03]} 29. b4 {[%emt 0:01:16]} axb4 {[%emt 0:00:14]} 30. axb4 {[%emt 0:00:02]} Qf5 {[%emt 0:01:37]} 31. Re1 {[%emt 0:02:11]} Re7 {[%emt 0:02:08]} 32. Ra1 {[%emt 0:13:57]} Qe4 {[%emt 0:01:20]} 33. Qf1 {[%emt 0:01:11]} Rc7 {[%emt 0:02:53]} 34. Re1 {[%emt 0:02:36]} Qf5 {[%emt 0:00:04]} 35. Nc5 {[%emt 0:00:48]} Re7 {[%emt 0:02:41]} 36. Ra1 {[%emt 0:03:21]} Bxc5 {[%emt 0:00:58]} 37. dxc5 {[%emt 0:00:25]} e5 {[%emt 0:00:52]} 38. fxe5 {[%emt 0:00:19]} Qxe5 {[%emt 0:00:21]} 39. Ra6 {[%emt 0:01:30]} d4 {[%emt 0:02:23]} 40. Qd3 {[%emt 0:04:30]} Qd5 {[%emt 0:05:12]} 41. Rd6 {[%emt 0:01:34]} Qa2 {[%emt 0:01:39]} 42. Rf1 {[%emt 0:01:19]} Re2 {[%emt 0:01:16]} 43. Rxg6+ {[%emt 0:01:00]} hxg6 {[%emt 0:00:18]} 44. Qxg6+ {[%emt 0:00:05]} Kh8 {[%emt 0:00:02]} 45. Qh6+ {[%emt 0:00:18]} Kg8 {[%emt 0:00:03]} 46. Rg1+ {[%emt 0:00:11]} Kf7 {[%emt 0:00:04]} 47. Rg7+ {[%emt 0:00:09]} Ke8 {[%emt 0:00:03]} 48. Qh8+ {[%emt 0:00:06]} 1-0

[Event "1000GM Spring GM-B 2024"]
[Site "New York"]
[Date "2024.03.31"]
[Round "9.2"]
[White "Paragua, Mark"]
[Black "Mandizha, Farai"]
[Result "1/2-1/2"]
[ECO "B85"]
[WhiteElo "2451"]
[BlackElo "2380"]
[Annotator "TA"]
[PlyCount "32"]
[EventDate "2024.03.26"]
[EventType "tourn"]
[EventCountry "USA"]
[SourceTitle "playchess.com"]
[Source "ChessBase"]
[SourceQuality "1"]
[TimeControl "5400+30"]

{[%evp 24,30,0,0,19,27,43,57,34]} 1. e4 {[%emt 1:31:00]} c5 {[%emt 1:31:00]} 2. Nf3 {[%emt 0:00:30]} d6 {[%emt 0:00:30]} 3. d4 {[%emt 0:00:30]} cxd4 {[%emt 0:00:30]} 4. Nxd4 {[%emt 0:00:30]} Nf6 {[%emt 0:00:30]} 5. Nc3 {[%emt 0:00:30]} a6 {[%emt 0:00:30]} 6. Be2 {[%emt 0:00:30]} e6 {[%emt 0:00:30]} 7. a4 {[%emt 0:00:30]} Nc6 {[%emt 0:00:30]} 8. O-O {[%emt 0:00:30]} Be7 {[%emt 0:00:30]} 9. Be3 {[%emt 0:00:30]} O-O {[%emt 0:00:30]} 10. f4 {[%emt 0:00:30]} Qc7 {[%emt 0:00:30]} 11. Kh1 {[%emt 0:00:30]} Re8 {[%emt 0:00:30]} 12. Bf3 {[%emt 0:00:30]} Rb8 {[%emt 0:00:30]} 13. Qd2 {[%emt 0:00:30]} Bf8 {[%emt 0:00:30]} 14. Qf2 {[%emt 0:00:30]} Bd7 {[%emt 0:00:30]} 15. g4 {[%emt 0:00:30] [#] Hoping for g5.} e5 {[%emt 0:00:30]} 16. Nf5 {[%emt 0:00:30]} exf4 {[%emt 0:00:30] White took control after the opening.   Weighted Error Value: White=0.00 (flawless) /Black=0.12 (very precise) .  OK:         	White=2     	---} 1/2-1/2

[Event "1000GM Spring GM-B 2024"]
[Site "New York"]
[Date "2024.03.31"]
[Round "9.3"]
[White "Luo, Terry"]
[Black "Girish, A. Koushik"]
[Result "1/2-1/2"]
[ECO "E08"]
[WhiteElo "2333"]
[BlackElo "2499"]
[Annotator "RC"]
[PlyCount "56"]
[EventDate "2024.03.26"]
[EventType "tourn"]
[EventCountry "USA"]
[SourceTitle "playchess.com"]
[Source "ChessBase"]
[SourceQuality "1"]
[TimeControl "5400+30"]

1. d4 {[%emt 0:00:01]} Nf6 {[%emt 0:00:20]} 2. c4 {[%emt 0:00:04]} e6 {[%emt 0:00:16]} 3. Nf3 {[%emt 0:00:04]} d5 {[%emt 0:00:14]} 4. g3 {[%emt 0:00:03]} Bb4+ {[%emt 0:00:31]} 5. Bd2 {[%emt 0:00:03]} Be7 {[%emt 0:00:30]} 6. Bg2 {[%emt 0:00:04]} O-O {[%emt 0:00:15]} 7. O-O {[%emt 0:00:03]} Nbd7 {[%emt 1:31:54]} 8. Qc2 {[%emt 0:00:11]} Ne4 {[%emt 0:00:00]} 9. Bf4 {[%emt 0:00:18]} c6 {[%emt 0:00:00]} 10. Nc3 {[%emt 0:00:12]} g5 {[%emt 0:00:00]} 11. Bc1 {[%emt 1:34:57]} f5 {[%emt 0:00:00]} 12. b3 {[%emt 0:00:00]} b6 {[%emt 0:00:00]} 13. Bb2 {[%emt 0:00:00]} Bb7 {[%emt 0:00:00]} 14. Nxe4 {[%emt 0:00:00]} dxe4 {[%emt 0:00:00]} 15. Ne5 {[%emt 0:00:00]} Nxe5 {[%emt 0:00:00]} 16. dxe5 {[%emt 0:00:00]} c5 {[%emt 0:00:00]} 17. Rad1 {[%emt 0:00:00]} Qe8 {[%emt 0:00:00]} 18. f3 {[%emt 0:00:00]} exf3 {[%emt 0:00:00]} 19. exf3 {[%emt 0:00:00]} Qc6 {[%emt 0:00:00]} 20. f4 {[%emt 0:00:00]} Qxg2+ {[%emt 0:00:00]} 21. Qxg2 {[%emt 0:00:00]} Bxg2 {[%emt 0:00:00]} 22. Kxg2 {[%emt 0:00:00]} Rad8 {[%emt 0:00:00]} 23. Kf3 {[%emt 0:00:00]} Kf7 {[%emt 0:00:00]} 24. Bc1 {[%emt 0:00:00]} Kg6 {[%emt 0:00:00]} 25. Be3 {[%emt 0:00:00]} h5 {[%emt 0:00:00]} 26. Rg1 {[%emt 0:00:00]} Rh8 {[%emt 0:00:00]} 27. fxg5 {[%emt 0:00:00]} Bxg5 {[%emt 0:00:00]} 28. Bf4 {[%emt 0:00:00]} Be7 {[%emt 0:10:30]} 1/2-1/2

[Event "1000GM Spring GM-B 2024"]
[Site "New York"]
[Date "2024.03.31"]
[Round "9.4"]
[White "Sinha, Sahil"]
[Black "Nagy, Gabor"]
[Result "1/2-1/2"]
[ECO "D37"]
[WhiteElo "2299"]
[BlackElo "2436"]
[Annotator "TA"]
[PlyCount "30"]
[EventDate "2024.03.26"]
[EventType "tourn"]
[EventCountry "USA"]
[SourceTitle "playchess.com"]
[Source "ChessBase"]
[SourceQuality "1"]
[TimeControl "5400+30"]

{[%evp 9,30,30,37,4,20,11,13,8,43,0,0,0,0,0,0,0,0,0,12,7,19,0,14]} 1. d4 {[%emt 1:31:00]} Nf6 {[%emt 0:03:55]} 2. c4 {[%emt 0:00:00]} e6 {[%emt 0:00:07]} 3. Nc3 {[%emt 0:00:00]} d5 {[%emt 0:00:43]} 4. Nf3 {[%emt 0:00:00]} h6 {[%emt 0:00:08]} 5. Bf4 {[%emt 0:00:00]} Bd6 {[%emt 0:00:41]} 6. Bg3 {[%emt 0:00:00]} O-O {[%emt 0:00:33]} 7. e3 {[%emt 0:00:00]} Bxg3 {[%emt 0:00:11]} 8. hxg3 {[%emt 0:00:00]} Qe7 {[%emt 0:00:08]} 9. Qc2 {[%emt 0:00:00]} dxc4 {[%emt 0:00:47] The position is equal.} 10. Bxc4 {[%emt 0:00:00]} c5 {[%emt 0:00:07]} 11. O-O {[%emt 0:00:00]} cxd4 {[%emt 0:00:13]} 12. exd4 {[%emt 0:00:00]} Qc7 {[%emt 0:00:29]} 13. Qe2 {[%emt 0:00:00]} Nc6 {[%emt 0:00:15]} 14. Rac1 {[%emt 0:00:00]} Bd7 {[%emt 0:00:14]} 15. Rfd1 {[%emt 0:00:00]} Rac8 {[%emt 0:00:44] A rather calm draw.   Weighted Error Value: White=0.14 (very precise) /Black=0.04 (flawless) .  Inaccurate:     	White=1     	Black=1      OK:         	White=2     	Black=7} 1/2-1/2

[Event "1000GM Spring GM-B 2024"]
[Site "New York"]
[Date "2024.03.31"]
[Round "9.5"]
[White "Kaliksteyn, Alexander"]
[Black "Griffith, Kyron"]
[Result "1/2-1/2"]
[ECO "D14"]
[WhiteElo "2356"]
[BlackElo "2352"]
[Annotator "RC"]
[PlyCount "30"]
[EventDate "2024.03.26"]
[EventType "tourn"]
[EventCountry "USA"]
[SourceTitle "playchess.com"]
[Source "ChessBase"]
[SourceQuality "1"]
[TimeControl "5400+30"]

1. d4 {[%emt 0:00:01]} d5 {[%emt 0:03:25]} 2. c4 {[%emt 0:00:08]} c6 {[%emt 0:00:04]} 3. cxd5 {[%emt 0:00:05]} cxd5 {[%emt 0:00:04]} 4. Nc3 {[%emt 0:00:03]} Nf6 {[%emt 0:00:05]} 5. Nf3 {[%emt 0:00:05]} Nc6 {[%emt 0:00:04]} 6. Bf4 {[%emt 0:00:05]} a6 {[%emt 0:00:04]} 7. e3 {[%emt 0:00:05]} Bf5 {[%emt 0:00:04]} 8. Bd3 {[%emt 0:00:06]} Bxd3 {[%emt 0:00:04]} 9. Qxd3 {[%emt 0:00:04]} e6 {[%emt 0:00:05]} 10. O-O {[%emt 0:00:06]} Bd6 {[%emt 0:00:03]} 11. Bxd6 {[%emt 0:00:07]} Qxd6 {[%emt 0:00:05]} 12. Rfc1 {[%emt 0:00:07]} O-O {[%emt 0:00:06]} 13. h3 {[%emt 0:00:05]} Rfc8 {[%emt 0:00:05]} 14. a3 {[%emt 0:00:05]} Rc7 {[%emt 0:00:06]} 15. Rc2 {[%emt 0:00:05]} Rac8 {[%emt 0:00:04]} 1/2-1/2